[Event "*** Titled Tuesday Blitz"]
[Site "Chess.com"]
[Date "2020.04.21"]
[Round "3"]
[White "imdarealist"]
[Black "AleksanderHnydiuk"]
[Result "0-1"]
[WhiteElo "2308"]
[BlackElo "2563"]
[TimeControl "180+1"]
[EndTime "10:29:20 PDT"]
[Termination "AleksanderHnydiuk won on time"]

1. d4 {[%clk 0:03:00.7]} 1... d5 {[%clk 0:02:59.7]} 2. Bf4 {[%clk 0:03:00.5]}
2... c5 {[%clk 0:02:59.1]} 3. e3 {[%clk 0:03:00.3]} 3... cxd4 {[%clk 0:02:58.9]}
4. exd4 {[%clk 0:03:01.2]} 4... Nc6 {[%clk 0:02:59.3]} 5. Nf3 {[%clk 0:02:53.9]}
5... Bg4 {[%clk 0:02:56.3]} 6. c3 {[%clk 0:02:49.1]} 6... e6 {[%clk 0:02:56.5]}
7. Qb3 {[%clk 0:02:34]} 7... Qb6 {[%clk 0:02:37.1]} 8. Qxb6 {[%clk 0:02:15.8]}
8... axb6 {[%clk 0:02:38]} 9. Bc7 {[%clk 0:02:16.1]} 9... Bxf3 {[%clk
0:02:30.3]} 10. gxf3 {[%clk 0:02:17]} 10... f6 {[%clk 0:01:27.5]} 11. Nd2 {[%clk
0:01:50.7]} 11... e5 {[%clk 0:01:21]} 12. dxe5 {[%clk 0:01:46.6]} 12... fxe5
{[%clk 0:01:21.9]} 13. Bxb6 {[%clk 0:01:46.9]} 13... Bd6 {[%clk 0:01:16.4]} 14.
Rg1 {[%clk 0:01:35.2]} 14... g6 {[%clk 0:00:55.8]} 15. Bb5 {[%clk 0:01:17.9]}
15... Ne7 {[%clk 0:00:53.9]} 16. a4 {[%clk 0:01:06.1]} 16... O-O {[%clk
0:00:53.1]} 17. h4 {[%clk 0:00:58.2]} 17... Kh8 {[%clk 0:00:42.1]} 18. O-O-O
{[%clk 0:00:57.4]} 18... Rf4 {[%clk 0:00:32]} 19. Rg4 {[%clk 0:00:54.3]} 19...
Raf8 {[%clk 0:00:26.9]} 20. Rdg1 {[%clk 0:00:52.3]} 20... h5 {[%clk 0:00:20]}
21. Rg5 {[%clk 0:00:42.2]} 21... Rxh4 {[%clk 0:00:18.7]} 22. Bd3 {[%clk
0:00:42.3]} 22... Rg8 {[%clk 0:00:13.1]} 23. Bxg6 {[%clk 0:00:38]} 23... Rh2
{[%clk 0:00:11.7]} 24. Bf7 {[%clk 0:00:33.6]} 24... Rxg5 {[%clk 0:00:10.9]} 25.
Rxg5 {[%clk 0:00:34.5]} 25... h4 {[%clk 0:00:08.1]} 26. b4 {[%clk 0:00:21.4]}
26... h3 {[%clk 0:00:05.7]} 27. Be6 {[%clk 0:00:17.8]} 27... Rh1+ {[%clk
0:00:04.3]} 28. Kc2 {[%clk 0:00:18.4]} 28... h2 {[%clk 0:00:04.7]} 29. Rh5+
{[%clk 0:00:17.1]} 29... Kg7 {[%clk 0:00:05]} 30. f4 {[%clk 0:00:14.2]} 30...
exf4 {[%clk 0:00:04.3]} 31. b5 {[%clk 0:00:13.4]} 31... Ne5 {[%clk 0:00:03.4]}
32. Bd4 {[%clk 0:00:13.5]} 32... Kg6 {[%clk 0:00:02.9]} 33. Rh3 {[%clk
0:00:09.9]} 33... f3 {[%clk 0:00:03]} 34. Bxe5 {[%clk 0:00:09.1]} 34... Bxe5
{[%clk 0:00:02.9]} 35. Nxf3 {[%clk 0:00:09.8]} 35... Bf4 {[%clk 0:00:02.9]} 36.
c4 {[%clk 0:00:05.9]} 36... Kf6 {[%clk 0:00:03]} 37. Bxd5 {[%clk 0:00:05.1]}
37... Nxd5 {[%clk 0:00:02.6]} 38. cxd5 {[%clk 0:00:06]} 38... b6 {[%clk
0:00:03.1]} 39. Kb2 {[%clk 0:00:02.3]} 39... Kf5 {[%clk 0:00:02.6]} 40. d6
{[%clk 0:00:01.9]} 40... Bxd6 {[%clk 0:00:01.9]} 0-1

[Event "*** Titled Tuesday Blitz"]
[Site "Chess.com"]
[Date "2020.04.21"]
[Round "3"]
[White "Rodalquilar"]
[Black "serhanberat_ozdemir"]
[Result "1-0"]
[WhiteElo "2616"]
[BlackElo "2405"]
[TimeControl "180+1"]
[EndTime "10:29:21 PDT"]
[Termination "Rodalquilar won by resignation"]

1. d4 {[%clk 0:02:58.1]} 1... Nf6 {[%clk 0:02:58.8]} 2. c4 {[%clk 0:02:58.7]}
2... g6 {[%clk 0:02:58.8]} 3. Nc3 {[%clk 0:02:59]} 3... Bg7 {[%clk 0:02:57.3]}
4. e4 {[%clk 0:02:59.4]} 4... d6 {[%clk 0:02:57.3]} 5. Nf3 {[%clk 0:02:59.3]}
5... O-O {[%clk 0:02:56.1]} 6. Be2 {[%clk 0:02:59.9]} 6... Bg4 {[%clk 0:02:56]}
7. h4 {[%clk 0:02:58.3]} 7... c5 {[%clk 0:02:25.8]} 8. Be3 {[%clk 0:02:56.6]}
8... cxd4 {[%clk 0:02:21.5]} 9. Nxd4 {[%clk 0:02:57.5]} 9... Bxe2 {[%clk
0:02:21.2]} 10. Qxe2 {[%clk 0:02:58.4]} 10... h5 {[%clk 0:02:19.3]} 11. f3
{[%clk 0:02:55.5]} 11... Nc6 {[%clk 0:02:15.9]} 12. O-O-O {[%clk 0:02:55.5]}
12... Rc8 {[%clk 0:02:02]} 13. Kb1 {[%clk 0:02:54.8]} 13... Qa5 {[%clk
0:01:58.8]} 14. Nb3 {[%clk 0:02:50.1]} 14... Qa6 {[%clk 0:01:46.8]} 15. g4
{[%clk 0:02:22.8]} 15... Ne5 {[%clk 0:01:22.6]} 16. g5 {[%clk 0:02:22.4]} 16...
Nfd7 {[%clk 0:01:18.8]} 17. Nd5 {[%clk 0:02:06.8]} 17... Rfe8 {[%clk 0:01:16.3]}
18. Nd2 {[%clk 0:02:06.7]} 18... Nxc4 {[%clk 0:01:13.6]} 19. Nxc4 {[%clk
0:02:05.8]} 19... Rxc4 {[%clk 0:01:11.8]} 20. Rhe1 {[%clk 0:01:47.2]} 20... e6
{[%clk 0:00:42.8]} 21. Nf4 {[%clk 0:01:47.3]} 21... Rec8 {[%clk 0:00:41.1]} 22.
Rd2 {[%clk 0:01:32.1]} 22... R8c6 {[%clk 0:00:37.6]} 23. b3 {[%clk 0:01:22.6]}
23... Qb5 {[%clk 0:00:32.4]} 24. Red1 {[%clk 0:01:06.9]} 24... Qe5 {[%clk
0:00:24.5]} 25. Rd4 {[%clk 0:00:59.2]} 25... Rxd4 {[%clk 0:00:10.8]} 26. Rxd4
{[%clk 0:01:00.1]} 26... Qa5 {[%clk 0:00:08.8]} 27. Rd3 {[%clk 0:00:39.2]} 27...
Nc5 {[%clk 0:00:08.8]} 28. Qd2 {[%clk 0:00:22.4]} 28... Qxd2 {[%clk 0:00:06.2]}
29. Rxd2 {[%clk 0:00:23.3]} 29... Be5 {[%clk 0:00:04.5]} 30. Ne2 {[%clk
0:00:21]} 30... Nd7 {[%clk 0:00:03.9]} 31. Bd4 {[%clk 0:00:20]} 31... Bxd4
{[%clk 0:00:04.1]} 32. Nxd4 {[%clk 0:00:20.9]} 32... Ra6 {[%clk 0:00:03.8]} 33.
Nb5 {[%clk 0:00:20.8]} 33... Ne5 {[%clk 0:00:02.7]} 34. f4 {[%clk 0:00:14.3]}
34... Ng4 {[%clk 0:00:02.5]} 35. Nxd6 {[%clk 0:00:11.4]} 35... Rb6 {[%clk
0:00:02.6]} 36. Nc8 {[%clk 0:00:11.5]} 36... Rc6 {[%clk 0:00:02.7]} 37. Ne7+
{[%clk 0:00:12]} 37... Kf8 {[%clk 0:00:02.1]} 38. Nxc6 {[%clk 0:00:12.9]} 38...
bxc6 {[%clk 0:00:02.9]} 39. Rd8+ {[%clk 0:00:13]} 39... Ke7 {[%clk 0:00:03.8]}
40. Ra8 {[%clk 0:00:13.9]} 40... Ne3 {[%clk 0:00:04.1]} 41. Rxa7+ {[%clk
0:00:14.8]} 41... Kf8 {[%clk 0:00:05]} 42. Rc7 {[%clk 0:00:14.8]} 42... Kg7
{[%clk 0:00:05.9]} 43. a4 {[%clk 0:00:14.7]} 43... Ng2 {[%clk 0:00:06.8]} 44. a5
{[%clk 0:00:15.1]} 44... Nxf4 {[%clk 0:00:06.4]} 45. a6 {[%clk 0:00:15.7]} 45...
Ne2 {[%clk 0:00:03.3]} 46. a7 {[%clk 0:00:15.5]} 46... Nc3+ {[%clk 0:00:04.2]}
47. Kb2 {[%clk 0:00:14.6]} 47... Nxe4 {[%clk 0:00:05.1]} 48. a8=Q {[%clk
0:00:14.5]} 1-0

[Event "*** Titled Tuesday Blitz"]
[Site "Chess.com"]
[Date "2020.04.21"]
[Round "3"]
[White "Danfii"]
[Black "Kimster98"]
[Result "0-1"]
[WhiteElo "2287"]
[BlackElo "2551"]
[TimeControl "180+1"]
[EndTime "10:29:21 PDT"]
[Termination "Kimster98 won by resignation"]

1. e4 {[%clk 0:03:00.9]} 1... c5 {[%clk 0:03:00.1]} 2. Nf3 {[%clk 0:03:00.5]}
2... e6 {[%clk 0:03:00.7]} 3. d4 {[%clk 0:03:01]} 3... cxd4 {[%clk 0:03:01.6]}
4. Nxd4 {[%clk 0:03:01.6]} 4... Nf6 {[%clk 0:03:02.1]} 5. Nc3 {[%clk 0:03:01.3]}
5... Nc6 {[%clk 0:03:02.2]} 6. Ndb5 {[%clk 0:03:01.1]} 6... Bc5 {[%clk
0:03:01.7]} 7. Bf4 {[%clk 0:03:00.3]} 7... O-O {[%clk 0:03:00.5]} 8. Bc7 {[%clk
0:03:00.3]} 8... Qe7 {[%clk 0:03:00.8]} 9. Bd6 {[%clk 0:03:00.9]} 9... Bxd6
{[%clk 0:03:01.1]} 10. Qxd6 {[%clk 0:03:01.8]} 10... Qd8 {[%clk 0:03:01.7]} 11.
a4 {[%clk 0:02:58.8]} 11... a6 {[%clk 0:02:44]} 12. Na3 {[%clk 0:02:58.5]} 12...
Qe7 {[%clk 0:02:20.1]} 13. Nc4 {[%clk 0:02:48.6]} 13... Qxd6 {[%clk 0:02:18]}
14. Nxd6 {[%clk 0:02:49.5]} 14... Ne8 {[%clk 0:02:17.6]} 15. O-O-O {[%clk
0:02:47.6]} 15... Nxd6 {[%clk 0:02:13.4]} 16. Rxd6 {[%clk 0:02:47]} 16... Rd8
{[%clk 0:02:02.5]} 17. Be2 {[%clk 0:02:37]} 17... Rb8 {[%clk 0:02:00.7]} 18.
Rhd1 {[%clk 0:02:33.6]} 18... Kf8 {[%clk 0:01:59.4]} 19. f4 {[%clk 0:02:28]}
19... f6 {[%clk 0:01:53.2]} 20. Bf3 {[%clk 0:02:05.1]} 20... Ke7 {[%clk
0:01:52.9]} 21. h4 {[%clk 0:01:48.6]} 21... Rf8 {[%clk 0:01:49.8]} 22. b3 {[%clk
0:01:32.3]} 22... Nd8 {[%clk 0:01:47.4]} 23. Ne2 {[%clk 0:01:11.6]} 23... b6
{[%clk 0:01:42.5]} 24. Ng3 {[%clk 0:01:05.1]} 24... Nf7 {[%clk 0:01:41.5]} 25.
R6d2 {[%clk 0:01:02.7]} 25... Rd8 {[%clk 0:01:41.6]} 26. Nh5 {[%clk 0:01:00.7]}
26... g6 {[%clk 0:01:40.9]} 27. Ng3 {[%clk 0:01:01]} 27... Bb7 {[%clk
0:01:37.8]} 28. h5 {[%clk 0:00:59.1]} 28... g5 {[%clk 0:01:37.3]} 29. f5 {[%clk
0:00:57]} 29... Ne5 {[%clk 0:01:37.1]} 30. Kb2 {[%clk 0:00:40.4]} 30... Rbc8
{[%clk 0:01:36.1]} 31. Rd6 {[%clk 0:00:37.9]} 31... Rc6 {[%clk 0:01:34.8]} 32.
Rxc6 {[%clk 0:00:36]} 32... Bxc6 {[%clk 0:01:33.3]} 33. h6 {[%clk 0:00:30.4]}
33... a5 {[%clk 0:01:18.5]} 34. Nh5 {[%clk 0:00:22]} 34... g4 {[%clk 0:01:18.2]}
35. Be2 {[%clk 0:00:19.6]} 35... Bxe4 {[%clk 0:01:18.4]} 36. fxe6 {[%clk
0:00:20.2]} 36... Kxe6 {[%clk 0:01:14.2]} 37. Bb5 {[%clk 0:00:20.1]} 37... d5
{[%clk 0:01:12.1]} 38. Ng7+ {[%clk 0:00:19.8]} 38... Kf7 {[%clk 0:01:10.6]} 39.
c4 {[%clk 0:00:15.2]} 39... d4 {[%clk 0:01:08.9]} 40. c5 {[%clk 0:00:13.1]}
40... bxc5 {[%clk 0:01:08]} 41. Re1 {[%clk 0:00:13.6]} 41... Bxg2 {[%clk
0:01:04.5]} 42. Nf5 {[%clk 0:00:10.1]} 42... Bc6 {[%clk 0:00:39]} 43. Bf1 {[%clk
0:00:07]} 43... Kg6 {[%clk 0:00:19.8]} 44. Ne7+ {[%clk 0:00:05.6]} 44... Kxh6
{[%clk 0:00:20.1]} 45. Rxe5 {[%clk 0:00:05.3]} 45... fxe5 {[%clk 0:00:19.7]} 46.
Nxc6 {[%clk 0:00:06.2]} 46... Re8 {[%clk 0:00:20.2]} 47. Kc2 {[%clk 0:00:05.1]}
47... e4 {[%clk 0:00:20.4]} 48. Kd2 {[%clk 0:00:04.7]} 48... g3 {[%clk
0:00:19.7]} 49. Bg2 {[%clk 0:00:04]} 49... e3+ {[%clk 0:00:19.9]} 50. Ke2 {[%clk
0:00:04.4]} 50... d3+ {[%clk 0:00:20.3]} 51. Kxd3 {[%clk 0:00:04.6]} 51... e2
{[%clk 0:00:21.2]} 0-1

[Event "*** Titled Tuesday Blitz"]
[Site "Chess.com"]
[Date "2020.04.21"]
[Round "3"]
[White "AlhosaniOmran1"]
[Black "DACF2905"]
[Result "1-0"]
[WhiteElo "2367"]
[BlackElo "2155"]
[TimeControl "180+1"]
[EndTime "10:29:22 PDT"]
[Termination "AlhosaniOmran1 won on time"]

1. e4 {[%clk 0:03:00.7]} 1... c5 {[%clk 0:02:59]} 2. Nf3 {[%clk 0:03:00.3]} 2...
e6 {[%clk 0:02:59]} 3. d4 {[%clk 0:03:00.6]} 3... cxd4 {[%clk 0:02:59.2]} 4.
Nxd4 {[%clk 0:03:01.5]} 4... a6 {[%clk 0:02:59.3]} 5. Nc3 {[%clk 0:03:01.9]}
5... Qc7 {[%clk 0:02:59.2]} 6. Be3 {[%clk 0:03:00.1]} 6... Nf6 {[%clk
0:02:59.2]} 7. f3 {[%clk 0:03:00.1]} 7... Bc5 {[%clk 0:02:57.4]} 8. Qd2 {[%clk
0:02:59.2]} 8... b5 {[%clk 0:02:56.5]} 9. O-O-O {[%clk 0:02:58.3]} 9... Bb7
{[%clk 0:02:55.9]} 10. Kb1 {[%clk 0:02:57.4]} 10... Be7 {[%clk 0:02:53]} 11. g4
{[%clk 0:02:52]} 11... d6 {[%clk 0:02:50.6]} 12. g5 {[%clk 0:02:51.7]} 12...
Nfd7 {[%clk 0:02:50]} 13. h4 {[%clk 0:02:50.1]} 13... Nc6 {[%clk 0:02:48.7]} 14.
h5 {[%clk 0:02:49.9]} 14... Nce5 {[%clk 0:02:39.2]} 15. g6 {[%clk 0:02:38.5]}
15... hxg6 {[%clk 0:02:36.8]} 16. Bxb5 {[%clk 0:02:30.2]} 16... gxh5 {[%clk
0:02:27.7]} 17. Be2 {[%clk 0:02:22.8]} 17... Nc4 {[%clk 0:02:26.3]} 18. Bxc4
{[%clk 0:02:22.8]} 18... Qxc4 {[%clk 0:02:26.3]} 19. Nb3 {[%clk 0:02:22.4]}
19... a5 {[%clk 0:02:23.7]} 20. Qd3 {[%clk 0:02:18.1]} 20... Qxd3 {[%clk
0:02:20.2]} 21. cxd3 {[%clk 0:02:19]} 21... a4 {[%clk 0:02:20.2]} 22. Nd2 {[%clk
0:02:18.6]} 22... a3 {[%clk 0:02:19]} 23. b3 {[%clk 0:02:12.7]} 23... Bf6 {[%clk
0:02:17.2]} 24. Nb5 {[%clk 0:02:11.8]} 24... Ke7 {[%clk 0:02:07.9]} 25. Nc4
{[%clk 0:02:10.4]} 25... d5 {[%clk 0:02:01.3]} 26. Ncxa3 {[%clk 0:01:54.2]}
26... dxe4 {[%clk 0:01:46.4]} 27. dxe4 {[%clk 0:01:52.5]} 27... g6 {[%clk
0:01:33]} 28. Nc4 {[%clk 0:01:52.1]} 28... Bc6 {[%clk 0:01:19.7]} 29. Nd4 {[%clk
0:01:44.4]} 29... Ra6 {[%clk 0:01:16.8]} 30. a4 {[%clk 0:01:18.6]} 30... Rb8
{[%clk 0:01:14.1]} 31. Kc2 {[%clk 0:01:17.3]} 31... Bxd4 {[%clk 0:00:40.7]} 32.
Bxd4 {[%clk 0:01:15.3]} 32... f5 {[%clk 0:00:41]} 33. exf5 {[%clk 0:01:12.7]}
33... exf5 {[%clk 0:00:39.6]} 34. Rhe1+ {[%clk 0:01:10.8]} 34... Kf7 {[%clk
0:00:38.4]} 35. Bc3 {[%clk 0:01:08.2]} 35... Nc5 {[%clk 0:00:28.7]} 36. Ne5+
{[%clk 0:01:01.4]} 36... Kg8 {[%clk 0:00:26.6]} 37. Nxg6 {[%clk 0:00:44.4]}
37... Bxf3 {[%clk 0:00:25.6]} 38. Ne7+ {[%clk 0:00:41.6]} 38... Kf7 {[%clk
0:00:25.4]} 39. Rd4 {[%clk 0:00:28.6]} 39... Nxb3 {[%clk 0:00:23.6]} 40. Rf4
{[%clk 0:00:28]} 40... Bg4 {[%clk 0:00:19.4]} 41. Nxf5 {[%clk 0:00:27.2]} 41...
Bxf5+ {[%clk 0:00:19.5]} 42. Rxf5+ {[%clk 0:00:28.1]} 42... Kg6 {[%clk
0:00:19.9]} 43. Rfe5 {[%clk 0:00:27.5]} 43... Rxa4 {[%clk 0:00:18.4]} 44. Rg1+
{[%clk 0:00:27.8]} 44... Kf7 {[%clk 0:00:17.4]} 45. Rf5+ {[%clk 0:00:27.5]}
45... Ke6 {[%clk 0:00:14.8]} 46. Rf6+ {[%clk 0:00:27.9]} 46... Kd5 {[%clk
0:00:12.9]} 47. Rd1+ {[%clk 0:00:28.1]} 47... Ke4 {[%clk 0:00:11.6]} 48. Re1+
{[%clk 0:00:27.4]} 48... Kd5 {[%clk 0:00:11.4]} 49. Re5+ {[%clk 0:00:27.7]}
49... Kc4 {[%clk 0:00:11.2]} 50. Rf4+ {[%clk 0:00:28]} 1-0

[Event "*** Titled Tuesday Blitz"]
[Site "Chess.com"]
[Date "2020.04.21"]
[Round "3"]
[White "Budisavljevic"]
[Black "kreonx"]
[Result "0-1"]
[WhiteElo "2441"]
[BlackElo "2248"]
[TimeControl "180+1"]
[EndTime "10:29:23 PDT"]
[Termination "kreonx won on time"]

1. d4 {[%clk 0:03:00.9]} 1... f5 {[%clk 0:02:59.4]} 2. Nc3 {[%clk 0:03:00.3]}
2... d5 {[%clk 0:02:58.1]} 3. Bg5 {[%clk 0:02:56.8]} 3... Nf6 {[%clk 0:02:58.6]}
4. Bxf6 {[%clk 0:02:56.7]} 4... exf6 {[%clk 0:02:59.5]} 5. e3 {[%clk 0:02:57.6]}
5... c6 {[%clk 0:02:59.5]} 6. Bd3 {[%clk 0:02:57.8]} 6... Be6 {[%clk 0:03:00]}
7. Qf3 {[%clk 0:02:58]} 7... Qd7 {[%clk 0:02:59.8]} 8. Nge2 {[%clk 0:02:58.4]}
8... g6 {[%clk 0:02:52.9]} 9. h4 {[%clk 0:02:58.3]} 9... h5 {[%clk 0:02:52.2]}
10. Nf4 {[%clk 0:02:57.2]} 10... Bf7 {[%clk 0:02:52.2]} 11. a3 {[%clk
0:02:55.6]} 11... b5 {[%clk 0:02:45.3]} 12. Nb1 {[%clk 0:02:39.3]} 12... a5
{[%clk 0:02:40.4]} 13. a4 {[%clk 0:02:32.8]} 13... b4 {[%clk 0:02:38.9]} 14. Nd2
{[%clk 0:02:32]} 14... Na6 {[%clk 0:02:37.8]} 15. Bxa6 {[%clk 0:02:23]} 15...
Rxa6 {[%clk 0:02:36.9]} 16. Nb3 {[%clk 0:02:22.9]} 16... Ra7 {[%clk 0:02:26]}
17. Nd3 {[%clk 0:02:22.4]} 17... Qc7 {[%clk 0:02:17.9]} 18. Kd2 {[%clk
0:02:12.3]} 18... Bd6 {[%clk 0:02:17]} 19. Qe2 {[%clk 0:02:02.7]} 19... O-O
{[%clk 0:02:15.9]} 20. f3 {[%clk 0:01:50.4]} 20... Re8 {[%clk 0:02:15.5]} 21. g4
{[%clk 0:01:50]} 21... hxg4 {[%clk 0:02:04.6]} 22. fxg4 {[%clk 0:01:36.5]} 22...
f4 {[%clk 0:02:04.7]} 23. Rh3 {[%clk 0:01:28.9]} 23... Qe7 {[%clk 0:01:52.9]}
24. Re1 {[%clk 0:01:21.6]} 24... fxe3+ {[%clk 0:01:49.3]} 25. Rxe3 {[%clk
0:01:20.5]} 25... Qxe3+ {[%clk 0:01:43.3]} 26. Qxe3 {[%clk 0:01:21.4]} 26...
Rxe3 {[%clk 0:01:42.9]} 27. Rxe3 {[%clk 0:01:22]} 27... Kf8 {[%clk 0:01:33.3]}
28. Re2 {[%clk 0:00:52.9]} 28... Ra8 {[%clk 0:01:16.5]} 29. Ndc5 {[%clk
0:00:51.1]} 29... Kg8 {[%clk 0:00:53]} 30. Nb7 {[%clk 0:00:43]} 30... Bf4+
{[%clk 0:00:51.2]} 31. Kd3 {[%clk 0:00:34.8]} 31... Be8 {[%clk 0:00:48.7]} 32.
N7xa5 {[%clk 0:00:16.3]} 32... g5 {[%clk 0:00:48]} 33. h5 {[%clk 0:00:15.8]}
33... Bd7 {[%clk 0:00:46.8]} 34. Rg2 {[%clk 0:00:15.7]} 34... f5 {[%clk
0:00:46.7]} 35. Nb7 {[%clk 0:00:11.4]} 35... fxg4 {[%clk 0:00:45.2]} 36. c3
{[%clk 0:00:09.8]} 36... Re8 {[%clk 0:00:40.6]} 37. cxb4 {[%clk 0:00:07.7]}
37... Bf5+ {[%clk 0:00:39.1]} 38. Kc3 {[%clk 0:00:07.8]} 38... Re3+ {[%clk
0:00:39.2]} 39. Kd2 {[%clk 0:00:08]} 39... Rxb3+ {[%clk 0:00:35.8]} 40. Kd1
{[%clk 0:00:08.3]} 40... Rxb4 {[%clk 0:00:35.2]} 41. Nc5 {[%clk 0:00:08.5]}
41... Rxd4+ {[%clk 0:00:35]} 42. Ke1 {[%clk 0:00:08.8]} 42... Rc4 {[%clk
0:00:31.6]} 43. Nb7 {[%clk 0:00:02.2]} 43... Rxa4 {[%clk 0:00:28.5]} 44. Re2
{[%clk 0:00:03.1]} 44... Ra1+ {[%clk 0:00:22]} 45. Kf2 {[%clk 0:00:02.6]} 45...
g3+ {[%clk 0:00:21.6]} 46. Kf3 {[%clk 0:00:02.2]} 46... Be4+ {[%clk 0:00:20.6]}
47. Kg4 {[%clk 0:00:01.8]} 47... g2 {[%clk 0:00:20.6]} 48. h6 {[%clk 0:00:02.7]}
48... g1=Q+ {[%clk 0:00:20.2]} 0-1

[Event "*** Titled Tuesday Blitz"]
[Site "Chess.com"]
[Date "2020.04.21"]
[Round "3"]
[White "Shuvatkin_Vladimir"]
[Black "INLOVEWITHF"]
[Result "1-0"]
[WhiteElo "2319"]
[BlackElo "2528"]
[TimeControl "180+1"]
[EndTime "10:29:25 PDT"]
[Termination "Shuvatkin_Vladimir won by checkmate"]

1. d4 {[%clk 0:02:31]} 1... Nf6 {[%clk 0:02:46.2]} 2. Nf3 {[%clk 0:02:30]} 2...
g6 {[%clk 0:02:44.9]} 3. g3 {[%clk 0:02:30.3]} 3... Bg7 {[%clk 0:02:45.2]} 4.
Bg2 {[%clk 0:02:30.8]} 4... O-O {[%clk 0:02:46.1]} 5. O-O {[%clk 0:02:31.4]}
5... d6 {[%clk 0:02:47]} 6. c4 {[%clk 0:02:31.9]} 6... Nc6 {[%clk 0:02:46.4]} 7.
Nc3 {[%clk 0:02:31]} 7... e5 {[%clk 0:02:46.9]} 8. Bg5 {[%clk 0:02:28.8]} 8...
h6 {[%clk 0:02:43]} 9. Bxf6 {[%clk 0:02:28.6]} 9... Bxf6 {[%clk 0:02:43.5]} 10.
dxe5 {[%clk 0:02:27.2]} 10... Nxe5 {[%clk 0:02:39.9]} 11. Nxe5 {[%clk
0:02:25.3]} 11... Bxe5 {[%clk 0:02:40.8]} 12. Qc2 {[%clk 0:02:23.8]} 12... c6
{[%clk 0:02:30.4]} 13. Rfd1 {[%clk 0:02:23]} 13... Qc7 {[%clk 0:02:30.2]} 14.
Rac1 {[%clk 0:02:22.2]} 14... f5 {[%clk 0:02:28.2]} 15. e3 {[%clk 0:02:16.9]}
15... Be6 {[%clk 0:02:28.1]} 16. Ne2 {[%clk 0:02:16.3]} 16... Bg7 {[%clk
0:02:26.1]} 17. b3 {[%clk 0:02:13.2]} 17... Rad8 {[%clk 0:02:24]} 18. Rd2 {[%clk
0:02:12.6]} 18... g5 {[%clk 0:02:14.1]} 19. Rcd1 {[%clk 0:02:12]} 19... Rd7
{[%clk 0:02:14.6]} 20. Nd4 {[%clk 0:02:11.4]} 20... Re7 {[%clk 0:02:10.9]} 21.
Nxe6 {[%clk 0:02:08.6]} 21... Rxe6 {[%clk 0:02:11.4]} 22. Rd3 {[%clk 0:02:05.1]}
22... Be5 {[%clk 0:02:06.5]} 23. Qe2 {[%clk 0:01:58.8]} 23... f4 {[%clk
0:01:58.7]} 24. exf4 {[%clk 0:01:51.8]} 24... gxf4 {[%clk 0:01:59.6]} 25. Qg4+
{[%clk 0:01:51.2]} 25... Kf7 {[%clk 0:01:56.4]} 26. Qh5+ {[%clk 0:01:43.7]}
26... Ke7 {[%clk 0:01:56.5]} 27. Qh4+ {[%clk 0:01:31.6]} 27... Rff6 {[%clk
0:01:49.5]} 28. Bh3 {[%clk 0:01:28.4]} 28... Qa5 {[%clk 0:01:41]} 29. Bxe6
{[%clk 0:01:25]} 29... Kxe6 {[%clk 0:01:41.9]} 30. Qg4+ {[%clk 0:01:23.6]} 30...
Ke7 {[%clk 0:01:39.7]} 31. Qe2 {[%clk 0:01:22.9]} 31... Re6 {[%clk 0:01:35.5]}
32. Qg4 {[%clk 0:01:17.6]} 32... Rf6 {[%clk 0:01:33.9]} 33. Qg7+ {[%clk
0:01:15.6]} 33... Rf7 {[%clk 0:01:29.4]} 34. Qxh6 {[%clk 0:01:15]} 34... fxg3
{[%clk 0:01:29.7]} 35. hxg3 {[%clk 0:01:14.6]} 35... Qxa2 {[%clk 0:01:28.9]} 36.
R1d2 {[%clk 0:01:14.5]} 36... Qb1+ {[%clk 0:01:27.2]} 37. Kg2 {[%clk 0:01:12.6]}
37... Qe1 {[%clk 0:01:27.4]} 38. Qg5+ {[%clk 0:01:07.6]} 38... Kd7 {[%clk
0:01:24.6]} 39. Qg4+ {[%clk 0:01:06]} 39... Kc7 {[%clk 0:01:24.5]} 40. Re2
{[%clk 0:01:05.7]} 40... Qb1 {[%clk 0:01:21.8]} 41. Qe4 {[%clk 0:01:03.5]} 41...
Rf8 {[%clk 0:01:16.6]} 42. c5 {[%clk 0:01:00.7]} 42... Rh8 {[%clk 0:01:12.9]}
43. Re1 {[%clk 0:00:55.7]} 43... Qb2 {[%clk 0:01:01.4]} 44. Rf3 {[%clk
0:00:46.6]} 44... Rd8 {[%clk 0:00:43.4]} 45. Rf7+ {[%clk 0:00:45]} 45... Kb8
{[%clk 0:00:43.5]} 46. cxd6 {[%clk 0:00:37.7]} 46... Bxd6 {[%clk 0:00:44.4]} 47.
Re3 {[%clk 0:00:33.3]} 47... a5 {[%clk 0:00:39.6]} 48. Qh7 {[%clk 0:00:31]}
48... Bc5 {[%clk 0:00:32.8]} 49. Rxb7+ {[%clk 0:00:29.8]} 49... Ka8 {[%clk
0:00:33.2]} 50. Rd7 {[%clk 0:00:21.4]} 50... Rxd7 {[%clk 0:00:28.9]} 51. Re8+
{[%clk 0:00:20.6]} 51... Ka7 {[%clk 0:00:23.2]} 52. Qxd7+ {[%clk 0:00:20.5]}
52... Ka6 {[%clk 0:00:21.3]} 53. Qxc6+ {[%clk 0:00:18.5]} 53... Bb6 {[%clk
0:00:20.6]} 54. Ra8# {[%clk 0:00:17.4]} 1-0